Cogmind - Beta 13 @@@ ROGUE MODE // 2024.05.17 @ 01:14:05 Player: mrwizrd Result: Destroyed by G-47 Trooper with Particle Gun Performance ------------- Evolutions (2) 1000 Regions Visited (4) 800 Robots Destroyed (33) 165 Value Destroyed (1046) 1046 Prototype IDs (2) 40 Alien Tech Used (0) 0 Bonus (66) 66 TOTAL SCORE: 3117 Bonus ------- Follower Combat Kills 66 Cogmind --------- Core Integrity 0/550 Matter 258/300 Energy 160/160 System Corruption 0% Temperature Warm (123) Movement Core (100) Ox1 Location -8/Materials Parts ------- > --- POWER (1) -------- Light Nuclear Core > --- PROPULSION (3) --- (None) > --- UTILITY (4) ------ Machine Analyzer Advanced Visual Processing Unit Hacking Suite > --- WEAPON (3) ------- (None) > --- INVENTORY (5) ---- Small Storage Unit Sensor Array Peak State ------------ > --- POWER ------------ Deuterium Engine > --- PROPULSION ------- Carbon-fiber Leg Carbon-fiber Leg Carbon-fiber Leg > --- UTILITY ---------- Machine Analyzer Advanced Visual Processing Unit Improved Sensor Array Hacking Suite > --- WEAPON ----------- Pulse Rifle Ion Cannon EMP Blaster > --- INVENTORY -------- Light Nuclear Core Small Storage Unit Sensor Array Rocket Launcher Plasma Flamer [Rating: 33] Favorites ----------- Power Light Ion Engine Engine Light Ion Engine Power Core Light Nuclear Core Propulsion Aluminum Leg Leg Aluminum Leg Utility Visual Processing Unit Device Sensor Array Processor Visual Processing Unit Hackware Hacking Suite Weapon Assault Rifle Energy Gun Pulse Rifle Energy Cannon Beam Cannon Ballistic Gun Assault Rifle Launcher EMP Blaster Special Weapon Mining Laser Slashing Weapon Mining Claw Build | -11 -10 -9 -9 -8 ------- Run | Yrd Mat Mat Min Mat Slots Evolved 4 | . . 2 . 2 Power . | . . . . . Propulsion 1 | . . . . 1 Utility 2 | . . 1 . 1 Weapon 1 | . . 1 . . Parts Attached 42 | 6 7 11 4 14 Power 8 | 1 1 2 1 3 Engine 5 | 1 1 2 . 1 Core 3 | . . . 1 2 Reactor . | . . . . . Propulsion 6 | 2 . 2 1 1 Treads . | . . . . . Leg 6 | 2 . 2 1 1 Wheel . | . . . . . Hover . | . . . . . Flight . | . . . . . Utility 11 | . 4 2 . 5 Device 6 | . 3 . . 3 Storage . | . . . . . Processor 3 | . 1 1 . 1 Hackware 2 | . . 1 . 1 Protection . | . . . . . Artifact . | . . . . . Weapon 17 | 3 2 5 2 5 Energy Gun 3 | 1 . 2 . . Energy Cannon 2 | . . 1 . 1 Ballistic Gun 2 | 2 . . . . Ballistic Cannon . | . . . . . Launcher 5 | . 1 2 1 1 Special Weapon 4 | . . . 1 3 Impact Weapon . | . . . . . Slashing Weapon 1 | . 1 . . . Piercing Weapon . | . . . . . Special Melee Weapon . | . . . . . Unidentified Prototypes 2 | . . 2 . . Parts Lost 13 | . . 2 . 11 Power 2 | . . 1 . 1 Propulsion 3 | . . . . 3 Utility 1 | . . . . 1 Weapon 7 | . . 1 . 6 Highest Loss Streak 7 | . . 1 . 7 To Critical Strikes . | . . . . . Average Slot Usage (%) 98 | . 99 99 100 91 Engine 9 | . 14 11 . 1 Core 2 | . . . 10 6 Leg 25 | . 28 22 22 21 Device 9 | . 13 5 . 8 Processor 16 | . 13 21 22 18 Hackware 3 | . . 5 11 9 Energy Gun 4 | . . 10 11 8 Energy Cannon 1 | . . 1 11 1 Ballistic Gun 13 | . 24 . . . Launcher 5 | . 2 9 3 8 Special Weapon 1 | . . . 7 6 Slashing Weapon 2 | . . 11 . . Naked Turns . | . . . . . Heaviest Build 23 | 9 9 18 15 23 Greatest Support 45 | 20 20 30 30 45 Greatest Overweight (x) 4 | 2 . . . 4 Average Overweight (x) . | . . . . . Largest Inventory Capacity 5 | 5 5 5 5 5 Average Capacity 5 | 5 5 5 5 5 Most Carried 5 | 3 5 5 5 5 Average Carried 4 | 2 4 4 4 4 Final Capacity 5 | 5 5 5 5 5 Final Carried 5 | 3 5 5 5 2 Class Distribution -------------------- 73% | Mutant 26% | Skirmisher Dominant Class ---------------- Mutant | -10/Materials Mutant | -9/Materials Skirmisher | -9/Mines Skirmisher | -8/Materials Resources | -11 -10 -9 -9 -8 ----------- Run | Yrd Mat Mat Min Mat Matter Collected 720 | 129 179 215 34 163 Remotely . | . . . . . Salvage Created 1182 | . 19 495 115 553 Parts 76 | . 4 37 8 27 Haulers Intercepted 1 | . . 1 . . Recyclers Shooed . | . . . . . Parts Field Recycled . | . . . . . Retrieved Matter . | . . . . . Parts Self-Destructed . | . . . . . Prevented . | . . . . . Kills | -11 -10 -9 -9 -8 ------- Run | Yrd Mat Mat Min Mat Combat Hostiles Destroyed 28 | . . 16 3 9 Guns 10 | . . 7 1 2 Cannons 6 | . . 2 1 3 AOE 11 | . . 7 . 4 Classes Destroyed 10 | . 1 4 . 5 Worker 1 | . . . . 1 Hauler 1 | . . 1 . . Recycler 1 | . . . . 1 Operator 1 | . . . . 1 Watcher 1 | . 1 . . . Swarmer 6 | . . 6 . . Grunt 15 | . . 8 3 4 Duelist 1 | . . . . 1 Sentry 5 | . . 2 . 3 Hunter 1 | . . . . 1 Best Kill Streak 10 | . 1 10 3 5 Combat Bots Only 10 | . . 10 3 4 Max Kills in Single Turn 3 | . 1 3 1 2 Gunslinging . | . . . . . Exploded 3 | . . 3 . 1 Melee . | . . . . . Uniques/NPCs Destroyed . | . . . . . Combat | -11 -10 -9 -9 -8 -------- Run | Yrd Mat Mat Min Mat Hostile Shots Fired 161 | . . 62 8 91 Missed 51 | . . 24 3 24 Damage Taken 1873 | . . 451 57 1365 Core 618 | . . 52 12 554 Absorbed by Shields . | . . . . . Regen/Repaired (Parts) 24 | . . . . 24 Core Remaining (%) 94 | 100 100 . 84 . Volleys Fired 109 | . 1 28 3 77 Largest 2 | . 2 2 2 2 Hottest 163 | . 40 123 123 163 Shots Fired 143 | . 3 38 6 96 Gun 55 | . 3 22 3 27 Cannon 25 | . . 10 3 12 Launcher 25 | . . 6 . 19 Special 38 | . . . . 38 Kinetic 3 | . 3 . . . Thermal 115 | . . 32 6 77 Explosive 8 | . . 6 . 2 Electromagnetic 17 | . . . . 17 Robot Hit Streak 25 | . 1 7 10 25 Robot Miss Streak 4 | . . 4 . 4 Penetration Max . | . . . . . Secondary Targets . | . . . . . Shots Hit Robots 73 | . 1 25 5 42 Core Hits 50 | . 1 26 3 20 Critical Kills 1 | . . . 1 . Critical Parts Destroyed . | . . . . . Critical Strikes 3 | . . . 1 2 Burn 2 | . . . . 2 Meltdown 1 | . . . 1 . Melee Attacks 1 | . . 1 . . Impact . | . . . . . Slashing 1 | . . 1 . . Piercing . | . . . . . Sneak Attacks . | . . . . . Combat Hostiles . | . . . . . Follow-up Attacks . | . . . . . Damage Inflicted 2161 | . 12 879 87 1183 Guns 638 | . 12 270 52 304 Cannons 349 | . . 105 35 209 Explosions 1086 | . . 478 . 608 Melee 26 | . . 26 . . Ramming . | . . . . . Kinetic 12 | . 12 . . . Thermal 1037 | . . 375 87 575 Explosive 683 | . . 478 . 205 Electromagnetic 403 | . . . . 403 Impact . | . . . . . Slashing 26 | . . 26 . . Piercing . | . . . . . Highest Corruption 2 | . 2 . . . Average Corruption 1 | . 1 . . . Corruption Purged . | . . . . . Corruption Blocked . | . . . . . Effects 18 | . 18 . . . Message Errors 3 | . 3 . . . Matter Fused 4 | . 4 . . . Heat Flow Errors 3 | . 3 . . . Energy Discharges 1 | . 1 . . . Data Loss (minor) 2 | . 2 . . . Data Loss (major) 4 | . 4 . . . Misfires 1 | . 1 . . . Overload Shots . | . . . . . Overflow Damage 51 | . . . . 51 Projectiles 14 | . . . . 14 Explosions 37 | . . . . 37 Melee . | . . . . . Knockbacks . | . . . . . Impact . | . . . . . Kinetic . | . . . . . Secondary . | . . . . . Self-Inflicted Damage 150 | . . 38 . 112 Shots 8 | . . 1 . 7 Rammed . | . . . . . Targets Rammed . | . . . . . Kicked . | . . . . . Crushed . | . . . . . Highest Temperature 561 | . 261 240 168 561 Average Temperature 86 | . 108 80 89 85 Received Heat Transfer 648 | . . 114 30 504 Effects 7 | . . 2 . 5 Shutdowns 1 | . . . . 1 Energy Bleed 2 | . . . . 2 Interference 2 | . . 2 . . Matter Decay 1 | . . . . 1 Short Circuit 1 | . . . . 1 Siege Activations . | . . . . . Robots Corrupted . | . . . . . Combat Hostiles . | . . . . . Parts Fried 1 | . . . . 1 Impact Corruptions . | . . . . . Robots Melted 1 | . . . 1 . Combat Hostiles 1 | . . . 1 . Parts Melted 5 | . . 3 . 2 Heat Transferred 2326 | . . 814 185 1327 Parts Sabotaged . | . . . . . Parts Stolen . | . . . . . Parts Stripped . | . . . . . Power Chain Reactions . | . . . . . Alert | -11 -10 -9 -9 -8 ------- Run | Yrd Mat Mat Min Mat Peak Influence 368 | . 15 368 160 152 Initial 90 | . . . 90 . Average 32 | . 1 81 103 37 Maximum Alert Level 1 | . . 1 . . Low Security (%) 97 | 100 100 82 100 100 Level 1 2 | . . 17 . . Level 2 . | . . . . . Level 3 . | . . . . . Level 4 . | . . . . . Level 5 . | . . . . . High Security . | . . . . . Max Security . | . . . . . Squads Dispatched 8 | . 1 2 . 5 Investigation 2 | . . 1 . 1 Extermination . | . . . . . Reinforcement 6 | . 1 1 . 4 Assault . | . . . . . Garrison . | . . . . . Intercept . | . . . . . Searches Triggered . | . . . . . Construction Impeded 1 | . . . . 1 Haulers Reinforced . | . . . . . Active Scanning Responses . | . . . . . Cargo Convoy Interrupts . | . . . . . Stealth | -11 -10 -9 -9 -8 --------- Run | Yrd Mat Mat Min Mat Distress Signals 5 | . . 1 . 4 Communications Jammed . | . . . . . Distress Signals . | . . . . . Times Spotted 46 | . . 20 3 23 Peak Tracking Total 12 | . . 5 3 12 Tactical Retreats 2 | . . . . 2 Traps | -11 -10 -9 -9 -8 ------- Run | Yrd Mat Mat Min Mat Traps Triggered 2 | . 2 . . . Indirectly . | . . . . . Trap Hack Attempts . | . . . . . Triggered . | . . . . . Disarmed . | . . . . . Reprogrammed . | . . . . . Reused . | . . . . . Traps Extracted . | . . . . . Installed . | . . . . . Triggered . | . . . . . Machines | -11 -10 -9 -9 -8 ---------- Run | Yrd Mat Mat Min Mat Machines Disabled 3 | . . 2 . 1 Max in Single Turn 1 | . . 1 . 1 Machines Repaired . | . . . . . Machines Dismantled . | . . . . . Machines Sabotaged . | . . . . . Overloaded Fab Kills . | . . . . . Hacking | -11 -10 -9 -9 -8 --------- Run | Yrd Mat Mat Min Mat Machines Accessed 8 | . 2 1 . 5 Terminals 6 | . 2 1 . 3 Fabricators . | . . . . . Repair Stations 1 | . . . . 1 Recycling Units 1 | . . . . 1 Scanalyzers . | . . . . . Garrison Access . | . . . . . Total Hacks 27 | . 5 3 . 19 Successful 18 | . 3 1 . 14 Failed 9 | . 2 2 . 5 Catastrophic 2 | . 1 . . 1 Database Lockouts . | . . . . . Manual 9 | . 4 3 . 2 Terminals 16 | . 5 3 . 8 Fabricators . | . . . . . Repair Stations 5 | . . . . 5 Recycling Units 6 | . . . . 6 Scanalyzers . | . . . . . Garrison Access . | . . . . . Terminal Hacks 8 | . 3 1 . 4 Record 1 | . 1 . . . Emergency Access Points 1 | . . . . 1 Unreport Threat 3 | . 1 1 . 1 Investigation Status 1 | . . . . 1 Recall Investigation 2 | . 1 . . 1 Fabricator Hacks . | . . . . . Repair Station Hacks 5 | . . . . 5 Scan Component 3 | . . . . 3 Repair 2 | . . . . 2 Recycling Unit Hacks 5 | . . . . 5 Recycle Component 1 | . . . . 1 Process 1 | . . . . 1 Report Inventory 1 | . . . . 1 Retrieve Matter 1 | . . . . 1 Retrieve Components 1 | . . . . 1 Scanalyzer . | . . . . . Garrison Access Hacks . | . . . . . Unauthorized Hacks . | . . . . . Terminals . | . . . . . Fabricators . | . . . . . Repair Stations . | . . . . . Recycling Units . | . . . . . Scanalyzers . | . . . . . Garrison Access . | . . . . . Data Cores Recovered 1 | . . . . 1 Used . | . . . . . Hacking Detections 7 | . 1 1 . 5 Full Trace Events 2 | . . 1 . 1 Feedback Events . | . . . . . Feedback Blocked . | . . . . . Robot Schematics Acquired . | . . . . . Robots Built . | . . . . . Authchips . | . . . . . Time . | . . . . . Total Robot Build Rating . | . . . . . Part Schematics Acquired . | . . . . . Parts Built . | . . . . . Authchips . | . . . . . Time . | . . . . . Total Part Build Rating . | . . . . . Parts Repaired 2 | . . . . 2 Time 64 | . . . . 64 Parts Recycled 1 | . . . . 1 Recycled Matter 29 | . . . . 29 Retrieved Matter 29 | . . . . 29 Retrieved Components 3 | . . . . 3 Parts Scanalyzed . | . . . . . Part Schematics Acquired . | . . . . . Parts Damaged . | . . . . . Bothacking | -11 -10 -9 -9 -8 ------------ Run | Yrd Mat Mat Min Mat Used RIF Installer . | . . . . . Robots Hacked . | . . . . . Non-combat . | . . . . . Combat . | . . . . . Robot Hacks Applied . | . . . . . Relay Couplers Released . | . . . . . Fabnet Peak Effective % . | . . . . . Robots Rewired . | . . . . . Allies Hacked . | . . . . . Hacks Repelled . | . . . . . Allies | -11 -10 -9 -9 -8 -------- Run | Yrd Mat Mat Min Mat Total Allies 3 | . . . 3 . Largest Group 3 | . . . 3 3 Highest-Rated Group 40 | . . . 40 40 Highest-Rated Ally 16 | . . . 16 16 Total Orders 13 | . . . . 13 STAY 5 | . . . . 5 ROAM 2 | . . . . 2 GUARD 3 | . . . . 3 AID 3 | . . . . 3 Ally Attacks 17 | . . . . 17 Total Damage 242 | . . . . 242 Kills 2 | . . . . 2 Allies Corrupted 1 | . . . . 1 Allies Melted . | . . . . . Intel | -11 -10 -9 -9 -8 ------- Run | Yrd Mat Mat Min Mat Robot Analysis Total . | . . . . . Derelict Logs Recovered . | . . . . . Drone Launches . | . . . . . Drone Recoveries . | . . . . . Exploration | -11 -10 -9 -9 -8 ------------- Run | Yrd Mat Mat Min Mat Turns Passed 5323 | 68 2846 888 613 908 Spaces Moved 2361 | 49 762 661 375 514 Core 46 | 13 . . . 33 Treads . | . . . . . Legs 2315 | 36 762 661 375 481 Wheels . | . . . . . Hover . | . . . . . Flight . | . . . . . Fastest Speed 50 | 50 120 120 120 50 Average Speed 119 | 115 120 120 120 117 Slowest Speed 250 | 150 120 120 120 250 Overloaded Moves . | . . . . . Propulsion Burnouts . | . . . . . Robots Hopped . | . . . . . Cave-ins Triggered . | . . . . . Exploration Rate (%) 35 | 5 44 29 63 37 Regions Visited 4 Branch Regions 1 Pre-discovered Areas . | . . . . . Known Exits Taken . | . . . . . Unknown Exits Taken 4 | 1 1 1 1 . Scrap Searched . | . . . . . Spaces Dug 17 | . . . . 17 Terrain Destroyed 64 | . . 29 . 35 Melee . | . . . . . Projectile 17 | . . . . 17 AOE 47 | . . 29 . 18 Terrain Rammed . | . . . . . Walls Destroyed . | . . . . . Machines Disabled . | . . . . . Actions | -11 -10 -9 -9 -8 --------- Run | Yrd Mat Mat Min Mat Total 4647 | 57 2690 717 531 652 Wait 2090 | . 1914 1 147 28 Move 2357 | 48 761 660 374 514 Hop . | . . . . . Pick Up 23 | 3 3 7 1 9 Fast Attach 18 | 5 5 4 . 4 Attach 9 | . . 3 1 5 Detach 1 | . . . . 1 Swap 15 | 1 2 4 3 5 Drop 24 | . 4 9 2 9 Fire 109 | . 1 28 3 77 Melee 1 | . . 1 . . Ram . | . . . . . Kick . | . . . . . Crush . | . . . . . Escape Stasis . | . . . . . Rewire . | . . . . . Trap . | . . . . . Miscellaneous . | . . . . . Route ------- -11/Scrapyard -10/Materials -9/Materials (discovered 2 exits: [*Min x2]) -9/Mines -8/Materials History --------- Turn | Location | Event 40 | -11/Scrapyard | Discovered new exit (range 14) 69 | -11/Scrapyard | Entered Materials 317 | -10/Materials | Build established: Mutant 2793 | -10/Materials | Discovered new exit (range 16) 2915 | -10/Materials | Entered another Materials area 2915 | -9/Materials | Evolved 2 slots: Utility x1, Weapon x1 3656 | -9/Materials | Discovered new exit (range 16) 3691 | -9/Materials | Destroyed 10 combat bots 3790 | -9/Materials | Discovered new exit (range 17) 3803 | -9/Materials | Entered Mines 4086 | -9/Mines | A weapon hastily lodged in a ceiling crevice suddenly fell to the ground 4110 | -9/Mines | Build established: Skirmisher 4278 | -9/Mines | Assisted by bots powering up and referring to "LRC-V3" 4399 | -9/Mines | Discovered new exit (range 5) 4416 | -9/Mines | Entered Materials 4416 | -8/Materials | Accompanied by 3 allies 4416 | -8/Materials | Evolved 2 slots: Propulsion x1, Utility x1 4942 | -8/Materials | Repaired Imp. Sensor Array 4968 | -8/Materials | Repaired Mining Laser 5288 | -8/Materials | Core integrity fell below 50% 5302 | -8/Materials | Core integrity fell below 20% 5318 | -8/Materials | Lost 7 parts (1p3n3w) 5324 | -8/Materials | Destroyed by G-47 Trooper with Particle Gun Last Messages --------------- G-47 Trooper destroyed. U-05 Engineer lays Concrete. K-01 Serf cleans the Terminal. T-07 Excavator is excavating. Destroyed Welding Torch. Electrolysis Chamber disabled. ALERT: Construction progress impeded, dispatching reinforcements to local area. U-05 Engineer lays Concrete. T-07 Excavator is excavating. U-05 Engineer lays Concrete. T-07 Excavator is excavating. K-01 Serf collects debris. U-05 Engineer lays Concrete. U-05 Engineer builds a Wall. Rocket Launcher destroyed. K-01 Serf collects debris. Plasma Flamer destroyed. Imp. Sensor Array destroyed. Critical hit (Burn: +37). Map ----- +----------------------------------------------------+ | ?????????????????????????????????????????????????? | | ?????????????????????????????????????????????????? | | ?????????????????????????????????????????????????? | | ?????????????????????????????????????????????????? | | ?????????????????????????????????????????????????? | | ?????????????????????????????????????????????????? | | ?????????????????????????????????????????????????? | | ?????????????????????????????????????????????????? | | ?????????????????????????????????????????????????? | | ?????????????????????????????????????????????????? | | ????????????????????????????????????????????###??? | | ???????????????????????????????????????????## #### | | ?????????"""???????????????????????????????# ]] | | ?????????"""???????????????????????????????# | | ?????????"""???????????????????????????????#"S | | ???????????????????????????????????????????#""" | | ?????????????????????????????###?????#?????# "" | | ???????????""T""????????????? ?? ?????# | | ???????????"""""????????????# """"" """""??####+## | | ????????????????????????????# """"" """""??# | | ??????????????????????###???# """"" """"" ?# ## | | ?????????????????#????# #### ??# #? | | ????????????????## ??#kt ##! ?????# #? | | ????????????"""?# ## ####??????# #? | | ????????????"""?#t"" l = g #??????# #? | | ????????????"""?+ T @ gg!g #??????# #? | | ????????????"""?# g g H #??"""?# #? | | ????????????"""?# ## ## #??"""?# #? | | ????????????????## ?# ### #??"""?+ #? | | ?????????????????# ???# "" #?# #????? # ####? | | ?????????????????#????# "" ##?# #?????## ##??# | | ??????????????????????# """ #??# #?????# ### | | ?????????????????????## #??# #?????# | | ?????????????????????## ] #??# #?????# # | | ??????????????????????##+######## ########### | | ???????????????????????#% # =# ## | | ???????????????????????#=! # #""" ## | | ???????????????????????# [ # !#""" + | | ???????????????????????# # #""" ## | | ???????????????????????# = + + ] ## | | ???????????????????????#!%!!! # #""" ## | | ???????????????????????# % !! # #""" ## | | ???????????????????????# %! # #""" ## | | ???????????????????????#% % # # ## | | ???????????????????????###""##### ########### | | ?????????????????????????####???# #?????????# | | ???????????????????????????????? #?????????? | | ???????????????????????????????#### #?????????? ## | | ??????????????????????????????????# #?????????? ?? | | ??????????????????????????????????? ?????????? ?? | +----------------------------------------------------+ Best States ------------- Heat Dissipation 31 Energy Generation 14 Energy Capacity 280 Matter Stores 300 Matter Capacity 300 Sight Range 20 Robot Scan Range 15 Terrain Scan Density 10 Evasion (%) 55 Offensive Hacking 10 Item Schematics ----------------- None Robot Schematics ------------------ None Fabricated ------------ Nothing Alien Tech Used ----------------- None Achievements -------------- GoHome() Challenges ------------ None Game ------ Seed UltimatePowerThrower Manual? 0 Play Time 01:49:11 Cumulative 16.8 hours Start 2024.05.15 @ 20:16:44 End 2024.05.17 @ 01:14:05 Sessions 5 Manual Loads 0 Difficulty Rogue Special Mode None Game No. 18 Rogue 18 Adventurer 0 Explorer 0 Win Type - Total 0 Types 0/0/0/0/0/0/0/0/0 Lore% 10 Gallery% 12 Achievement% 12 Wizard Run 0 Options --------- Layout 0 ASCII 0 Keyboard 1 Movement Arrows Keybinds 0 Fullscreen 2 Font 24/Crisp Map View 76x50 Zoom Use 9% Tactical HUD 0 Map Filters NONE Filters NONE Steam 1 RUN: dc21205c-7cad-4b8f-9eec-b65d47b3f13d